[Event "Prague Open 2025"]
[Site "Prague"]
[Date "2025.01.11"]
[Round "2.17"]
[White "Jaskolka, Tomasz"]
[Black "Zelezny, Jan"]
[Result "1-0"]
[Annotator "RC"]
[ECO "D00"]
[WhiteElo "2210"]
[BlackElo "1960"]
[PlyCount "45"]
[EventDate "2025.01.07"]
[EventType "swiss"]
[EventCountry "CZE"]
[SourceTitle "playchess.com"]
[Source "ChessBase"]
[SourceQuality "1"]
[TimeControl "40/5400+30:1800+30"]

1. d4 {[%emt 0:00:05]} d5 {[%emt 0:00:04]} 2. Bf4 {[%emt 0:00:14]} Nf6 {[%emt 0:00:36]} 3. e3 {[%emt 0:00:05]} e6 {[%emt 0:00:07]} 4. Nf3 {[%emt 0:00:38]} Bd6 {[%emt 0:00:21]} 5. c3 {[%emt 0:00:55]} Bxf4 {[%emt 0:00:22]} 6. exf4 {[%emt 0:00:03]} O-O {[%emt 0:00:25]} 7. Nbd2 {[%emt 0:00:02]} b6 {[%emt 0:00:11]} 8. Ne5 {[%emt 0:00:59]} a5 {[%emt 0:00:59]} 9. g3 {[%emt 0:01:19]} Ba6 {[%emt 0:01:41]} 10. Bxa6 {[%emt 0:01:21]} Nxa6 {[%emt 0:00:29]} 11. O-O {[%emt 0:04:08]} c5 {[%emt 0:00:05]} 12. Rc1 {[%emt 0:00:48]} c4 {[%emt 0:03:31]} 13. Qf3 {[%emt 0:01:19]} Nd7 {[%emt 0:02:36]} 14. Rfe1 {[%emt 0:01:14]} Nxe5 {[%emt 0:01:41]} 15. Rxe5 {[%emt 0:00:12]} Nb8 {[%emt 0:05:44]} 16. f5 {[%emt 0:09:22]} Qg5 {[%emt 0:02:55]} 17. fxe6 {[%emt 0:03:12]} Qxd2 {[%emt 0:04:40]} 18. exf7+ {[%emt 0:00:05]} Kh8 {[%emt 0:00:06]} 19. Rd1 {[%emt 0:00:53]} Qc2 {[%emt 0:04:38]} 20. Re8 {[%emt 0:00:51]} Nd7 {[%emt 0:01:14]} 21. Rde1 {[%emt 0:02:50]} Qg6 {[%emt 0:05:19]} 22. Rxa8 {[%emt 0:00:31]} Rxa8 {[%emt 0:02:06]} 23. Qxd5 {[%emt 0:00:06]} 1-0

[Event "Prague Open 2025"]
[Site "Prague"]
[Date "2025.01.11"]
[Round "2.18"]
[White "Svadlenka, Dominik"]
[Black "Mueer, Sebastian"]
[Result "0-1"]
[Annotator "RC"]
[ECO "E34"]
[WhiteElo "1985"]
[BlackElo "2192"]
[PlyCount "76"]
[EventDate "2025.01.07"]
[EventType "swiss"]
[EventCountry "CZE"]
[SourceTitle "playchess.com"]
[Source "ChessBase"]
[SourceQuality "1"]
[TimeControl "40/5400+30:1800+30"]

1. d4 {[%emt 0:00:07]} Nf6 {[%emt 0:03:44]} 2. c4 {[%emt 0:00:05]} e6 {[%emt 0:00:07]} 3. Nc3 {[%emt 0:00:05]} Bb4 {[%emt 0:00:08]} 4. Qc2 {[%emt 0:00:03]} d5 {[%emt 0:00:11]} 5. Bg5 {[%emt 0:03:25]} dxc4 {[%emt 0:20:53]} 6. e3 {[%emt 0:01:13]} c5 {[%emt 0:08:22]} 7. dxc5 {[%emt 0:05:32]} Qd5 {[%emt 0:04:03]} 8. Bxf6 {[%emt 0:02:11]} gxf6 {[%emt 0:01:42]} 9. a3 {[%emt 0:01:08]} Ba5 {[%emt 0:05:29]} 10. Qa4+ {[%emt 0:04:50]} Nc6 {[%emt 0:00:19]} 11. Qxc4 {[%emt 0:00:27]} Qxc4 {[%emt 0:01:33]} 12. Bxc4 {[%emt 0:03:18]} Bxc3+ {[%emt 0:00:14]} 13. bxc3 {[%emt 0:00:04]} Rg8 {[%emt 0:04:13]} 14. Nf3 {[%emt 0:08:14]} Rxg2 {[%emt 0:04:38]} 15. Rb1 {[%emt 0:09:32]} a6 {[%emt 0:07:17]} 16. Bd3 {[%emt 0:12:09]} Na5 {[%emt 0:13:17]} 17. h4 {[%emt 0:15:44]} h6 {[%emt 0:02:54]} 18. Ke2 {[%emt 0:03:19]} Bd7 {[%emt 0:01:52]} 19. Nd4 {[%emt 0:03:43]} Rc8 {[%emt 0:02:11]} 20. c6 {[%emt 0:05:28]} bxc6 {[%emt 0:01:20]} 21. Bxa6 {[%emt 0:00:32]} Ra8 {[%emt 0:00:11]} 22. Bd3 {[%emt 0:00:33]} Ke7 {[%emt 0:01:36]} 23. Be4 {[%emt 0:03:14]} Rgg8 {[%emt 0:00:22]} 24. Kd3 {[%emt 0:02:07]} f5 {[%emt 0:00:25]} 25. Bf3 {[%emt 0:00:43]} e5 {[%emt 0:00:12]} 26. Rb6 {[%emt 0:03:20]} exd4 {[%emt 0:02:34]} 27. cxd4 {[%emt 0:00:07]} Rgb8 {[%emt 0:00:53]} 28. Rhb1 {[%emt 0:00:07]} Rxb6 {[%emt 0:00:06]} 29. Rxb6 {[%emt 0:00:04]} Kd6 {[%emt 0:00:45]} 30. Kc3 {[%emt 0:01:28]} Be6 {[%emt 0:03:03]} 31. Rb4 {[%emt 0:02:21]} Kc7 {[%emt 0:03:03]} 32. a4 {[%emt 0:02:16]} Rg8 {[%emt 0:00:42]} 33. Rb1 {[%emt 0:00:32]} Ba2 {[%emt 0:01:32]} 34. Rb2 {[%emt 0:00:31]} Be6 {[%emt 0:00:02]} 35. Rb1 {[%emt 0:00:28]} Nc4 {[%emt 0:01:07]} 36. Rc1 {[%emt 0:04:22]} Ra8 {[%emt 0:01:04]} 37. Kb4 {[%emt 0:01:13]} Rb8+ {[%emt 0:00:55]} 38. Kc5 {[%emt 0:00:19]} Nd2 {[%emt 0:00:07]} 0-1

[Event "Prague Open 2025"]
[Site "Prague"]
[Date "2025.01.11"]
[Round "2.19"]
[White "Moser, Axel"]
[Black "Rajnys, Vladimir"]
[Result "1-0"]
[Annotator "RC"]
[ECO "D37"]
[WhiteElo "2160"]
[BlackElo "1954"]
[PlyCount "77"]
[EventDate "2025.01.07"]
[EventType "swiss"]
[EventCountry "CZE"]
[SourceTitle "playchess.com"]
[Source "ChessBase"]
[SourceQuality "1"]
[TimeControl "40/5400+30:1800+30"]

1. d4 {[%emt 0:00:03]} d5 {[%emt 0:00:27]} 2. c4 {[%emt 0:00:24]} e6 {[%emt 0:00:07]} 3. Nc3 {[%emt 0:00:29]} Nf6 {[%emt 0:00:19]} 4. Nf3 {[%emt 0:00:28]} Be7 {[%emt 0:00:19]} 5. Bf4 {[%emt 0:00:08]} c6 {[%emt 0:03:12]} 6. e3 {[%emt 0:00:41]} Nbd7 {[%emt 0:01:32]} 7. Qc2 {[%emt 0:04:03]} O-O {[%emt 0:08:32]} 8. h3 {[%emt 0:03:11]} dxc4 {[%emt 0:06:38]} 9. Bxc4 {[%emt 0:00:13]} Nb6 {[%emt 0:00:45]} 10. Be2 {[%emt 0:04:47]} Nbd5 {[%emt 0:00:35]} 11. Bh2 {[%emt 0:00:38]} Qa5 {[%emt 0:06:02]} 12. O-O {[%emt 0:01:05]} Nxc3 {[%emt 0:00:44]} 13. bxc3 {[%emt 0:00:47]} b6 {[%emt 0:05:01]} 14. Ne5 {[%emt 0:03:43]} Bb7 {[%emt 0:01:08]} 15. Bf3 {[%emt 0:00:29]} Rac8 {[%emt 0:03:11]} 16. Nc4 {[%emt 0:05:26]} Qg5 {[%emt 0:06:31]} 17. Bf4 {[%emt 0:16:45]} Qb5 {[%emt 0:13:30]} 18. Ne5 {[%emt 0:01:08]} Qa5 {[%emt 0:05:57]} 19. Nc4 {[%emt 0:05:41]} Qb5 {[%emt 0:02:20]} 20. Be2 {[%emt 0:01:54]} Qd5 {[%emt 0:03:07]} 21. Ne5 {[%emt 0:00:37]} Qa5 {[%emt 0:01:28]} 22. e4 {[%emt 0:08:04]} b5 {[%emt 0:12:00]} 23. a4 {[%emt 0:00:53]} Qb6 {[%emt 0:00:16]} 24. a5 {[%emt 0:03:38]} Qd8 {[%emt 0:00:28]} 25. Rfd1 {[%emt 0:00:19]} a6 {[%emt 0:00:40]} 26. c4 {[%emt 0:02:07]} Nd7 {[%emt 0:01:26]} 27. Nf3 {[%emt 0:01:33]} Bb4 {[%emt 0:02:12]} 28. c5 {[%emt 0:02:13]} Bxa5 {[%emt 0:03:58]} 29. e5 {[%emt 0:01:07]} Bc7 {[%emt 0:00:51]} 30. Ng5 {[%emt 0:00:30]} g6 {[%emt 0:01:21]} 31. Ra3 {[%emt 0:03:12]} Qe7 {[%emt 0:01:30]} 32. Rg3 {[%emt 0:01:04]} f6 {[%emt 0:02:00]} 33. Nxh7 {[%emt 0:09:54]} Qxh7 {[%emt 0:01:14]} 34. Rxg6+ {[%emt 0:00:08]} Kf7 {[%emt 0:00:07]} 35. Bd3 {[%emt 0:00:50]} Qh8 {[%emt 0:02:02]} 36. Rh6 {[%emt 0:04:57]} Qg8 {[%emt 0:00:31]} 37. Rg6 {[%emt 0:02:20]} Qh8 {[%emt 0:00:59]} 38. Rh6 {[%emt 0:00:21]} Qg8 {[%emt 0:00:11]} 39. Bh7 {[%emt 0:04:26]} 1-0

[Event "Prague Open 2025"]
[Site "Prague"]
[Date "2025.01.11"]
[Round "2.20"]
[White "Elashvili, Giorgi"]
[Black "Mannion, Stephen R"]
[Result "1/2-1/2"]
[Annotator "RC"]
[ECO "A06"]
[WhiteElo "1980"]
[BlackElo "2159"]
[PlyCount "40"]
[EventDate "2025.01.07"]
[EventType "swiss"]
[EventCountry "CZE"]
[SourceTitle "playchess.com"]
[Source "ChessBase"]
[SourceQuality "1"]
[TimeControl "40/5400+30:1800+30"]

1. Nf3 {[%emt 0:03:53]} d5 {[%emt 0:00:16]} 2. e3 {[%emt 0:00:29]} Nf6 {[%emt 0:00:21]} 3. b3 {[%emt 0:02:22]} Bf5 {[%emt 0:01:13]} 4. Bb2 {[%emt 0:04:33]} e6 {[%emt 0:00:13]} 5. Be2 {[%emt 0:03:54]} h6 {[%emt 0:00:18]} 6. O-O {[%emt 0:00:51]} Bd6 {[%emt 0:03:12]} 7. Ne5 {[%emt 0:01:48]} O-O {[%emt 0:02:29]} 8. f4 {[%emt 0:00:11]} Nbd7 {[%emt 0:09:42]} 9. d3 {[%emt 0:12:41]} Qe7 {[%emt 0:11:29]} 10. Qe1 {[%emt 0:02:01]} c6 {[%emt 0:13:00]} 11. Qg3 {[%emt 0:16:19]} Ne8 {[%emt 0:01:47]} 12. Nd2 {[%emt 0:00:41]} Nxe5 {[%emt 0:03:57]} 13. Bxe5 {[%emt 0:13:39]} f6 {[%emt 0:10:10]} 14. Bxd6 {[%emt 0:09:18]} Nxd6 {[%emt 0:00:26]} 15. a4 {[%emt 0:05:10]} Rad8 {[%emt 0:02:10]} 16. Rf2 {[%emt 0:04:39]} Bh7 {[%emt 0:01:18]} 17. Bg4 {[%emt 0:01:20]} Bf5 {[%emt 0:14:04]} 18. h3 {[%emt 0:02:58]} e5 {[%emt 0:00:58]} 19. fxe5 {[%emt 0:03:07]} fxe5 {[%emt 0:00:52]} 20. Raf1 {[%emt 0:01:13]} Bxg4 {[%emt 0:00:59]} 1/2-1/2

[Event "Prague Open 2025"]
[Site "Prague"]
[Date "2025.01.11"]
[Round "2.21"]
[White "Fizer, Marek"]
[Black "Skettos, Nicolas"]
[Result "1-0"]
[Annotator "RC"]
[ECO "C10"]
[WhiteElo "2155"]
[BlackElo "1954"]
[PlyCount "65"]
[EventDate "2025.01.07"]
[EventType "swiss"]
[EventCountry "CZE"]
[SourceTitle "playchess.com"]
[Source "ChessBase"]
[SourceQuality "1"]
[TimeControl "40/5400+30:1800+30"]

1. e4 {[%emt 0:00:05]} e6 {[%emt 0:00:36]} 2. d4 {[%emt 0:00:08]} d5 {[%emt 0:00:04]} 3. Nc3 {[%emt 0:00:13]} dxe4 {[%emt 0:00:34]} 4. Nxe4 {[%emt 0:00:11]} Nd7 {[%emt 0:00:02]} 5. Nf3 {[%emt 0:01:01]} Ngf6 {[%emt 0:00:04]} 6. Nxf6+ {[%emt 0:02:29]} Nxf6 {[%emt 0:00:04]} 7. Be2 {[%emt 0:03:25]} c5 {[%emt 0:00:37]} 8. O-O {[%emt 0:03:16]} Be7 {[%emt 0:02:53]} 9. Bf4 {[%emt 0:11:05]} O-O {[%emt 0:02:48]} 10. dxc5 {[%emt 0:08:45]} Bxc5 {[%emt 0:00:24]} 11. Ne5 {[%emt 0:01:01]} Nd5 {[%emt 0:12:11]} 12. Bg3 {[%emt 0:02:02]} f6 {[%emt 0:05:34]} 13. Nd3 {[%emt 0:04:29]} Bd6 {[%emt 0:02:12]} 14. Bf3 {[%emt 0:02:25]} Bxg3 {[%emt 0:00:31]} 15. hxg3 {[%emt 0:00:12]} Nb6 {[%emt 0:05:07]} 16. a4 {[%emt 0:05:58]} a5 {[%emt 0:02:38]} 17. Qe2 {[%emt 0:07:55]} Qc7 {[%emt 0:04:11]} 18. Ra3 {[%emt 0:05:16]} e5 {[%emt 0:05:05]} 19. Rc3 {[%emt 0:00:45]} Qe7 {[%emt 0:01:17]} 20. Nc5 {[%emt 0:00:49]} f5 {[%emt 0:07:15]} 21. Qb5 {[%emt 0:09:59]} Rf6 {[%emt 0:01:20]} 22. Rd1 {[%emt 0:04:52]} e4 {[%emt 0:03:38]} 23. Bh5 {[%emt 0:03:27]} g6 {[%emt 0:01:10]} 24. Be2 {[%emt 0:00:14]} Rc6 {[%emt 0:19:50]} 25. Nxe4 {[%emt 0:05:18]} Qxe4 {[%emt 0:07:12]} 26. Bf3 {[%emt 0:01:03]} Qb4 {[%emt 0:01:44]} 27. Rd8+ {[%emt 0:00:53]} Kg7 {[%emt 0:00:58]} 28. Bxc6 {[%emt 0:01:38]} bxc6 {[%emt 0:00:01]} 29. Qe5+ {[%emt 0:00:08]} Kh6 {[%emt 0:00:46]} 30. Rd4 {[%emt 0:00:20]} Nd5 {[%emt 0:03:03]} 31. Rxb4 {[%emt 0:00:35]} axb4 {[%emt 0:00:12]} 32. Rc4 {[%emt 0:00:36]} f4 {[%emt 0:00:21]} 33. Rxc6 {[%emt 0:00:36]} 1-0

[Event "Prague Open 2025"]
[Site "Prague"]
[Date "2025.01.11"]
[Round "3.1"]
[White "Harshavardhan G B"]
[Black "Fizer, Marek"]
[Result "1-0"]
[Annotator "RC"]
[ECO "D20"]
[WhiteElo "2405"]
[BlackElo "2155"]
[PlyCount "99"]
[EventDate "2025.01.07"]
[EventType "swiss"]
[EventCountry "CZE"]
[SourceTitle "playchess.com"]
[Source "ChessBase"]
[SourceQuality "1"]
[TimeControl "40/5400+30:1800+30"]

1. d4 {[%emt 0:00:17]} d5 {[%emt 0:00:43]} 2. c4 {[%emt 0:00:22]} dxc4 {[%emt 0:00:36]} 3. e4 {[%emt 0:00:26]} b5 {[%emt 0:00:22]} 4. a4 {[%emt 0:01:06]} c6 {[%emt 0:00:08]} 5. Nc3 {[%emt 0:02:44]} b4 {[%emt 0:10:12]} 6. Na2 {[%emt 0:00:24]} e6 {[%emt 0:01:13]} 7. Bxc4 {[%emt 0:00:14]} Nf6 {[%emt 0:00:48]} 8. f3 {[%emt 0:02:12]} Be7 {[%emt 0:03:13]} 9. Be3 {[%emt 0:03:02]} O-O {[%emt 0:03:58]} 10. Ne2 {[%emt 0:00:10]} a5 {[%emt 0:03:00]} 11. O-O {[%emt 0:00:35]} Ba6 {[%emt 0:02:19]} 12. Rc1 {[%emt 0:01:01]} Nbd7 {[%emt 0:07:11]} 13. Bxa6 {[%emt 0:13:28]} Rxa6 {[%emt 0:00:07]} 14. b3 {[%emt 0:00:20]} Qa8 {[%emt 0:04:52]} 15. Rc2 {[%emt 0:10:48]} Rc8 {[%emt 0:03:18]} 16. Nac1 {[%emt 0:02:56]} c5 {[%emt 0:03:10]} 17. Nd3 {[%emt 0:00:34]} cxd4 {[%emt 0:20:51]} 18. Nxd4 {[%emt 0:00:48]} Nc5 {[%emt 0:09:10]} 19. Qc1 {[%emt 0:08:16]} Nfd7 {[%emt 0:00:28]} 20. Rff2 {[%emt 0:03:48]} Bf8 {[%emt 0:10:15]} 21. Rfd2 {[%emt 0:03:26]} Nxd3 {[%emt 0:01:29]} 22. Rxd3 {[%emt 0:00:58]} Rxc2 {[%emt 0:01:09]} 23. Qxc2 {[%emt 0:00:38]} Nc5 {[%emt 0:04:57]} 24. Rd1 {[%emt 0:00:22]} e5 {[%emt 0:01:26]} 25. Nb5 {[%emt 0:01:40]} Ne6 {[%emt 0:00:06]} 26. Qd3 {[%emt 0:02:18]} Qc8 {[%emt 0:05:51]} 27. Kf1 {[%emt 0:04:34]} Nf4 {[%emt 0:01:50]} 28. Qd2 {[%emt 0:06:24]} Rg6 {[%emt 0:00:18]} 29. Rc1 {[%emt 0:02:56]} Qe6 {[%emt 0:00:44]} 30. Bxf4 {[%emt 0:03:58]} exf4 {[%emt 0:00:02]} 31. Rc4 {[%emt 0:01:04]} Qf6 {[%emt 0:01:39]} 32. Qd4 {[%emt 0:00:26]} Qg5 {[%emt 0:00:26]} 33. Rc2 {[%emt 0:00:30]} h5 {[%emt 0:00:19]} 34. Nc7 {[%emt 0:10:20]} h4 {[%emt 0:00:39]} 35. h3 {[%emt 0:00:22]} Kh7 {[%emt 0:00:30]} 36. Nd5 {[%emt 0:00:44]} Bd6 {[%emt 0:00:32]} 37. Qf2 {[%emt 0:01:58]} Qg3 {[%emt 0:00:30]} 38. Qxg3 {[%emt 0:00:52]} hxg3 {[%emt 0:00:09]} 39. Rc6 {[%emt 0:00:46]} Be5 {[%emt 0:00:42]} 40. Rxg6 {[%emt 0:01:02]} Kxg6 {[%emt 0:00:33]} 41. Ke2 {[%emt 0:30:08]} Bd6 {[%emt 0:06:11]} 42. Kd3 {[%emt 0:00:00]} f6 {[%emt 0:02:18]} 43. Nb6 {[%emt 0:00:00]} Bc7 {[%emt 0:03:25]} 44. Nc4 {[%emt 0:00:00]} f5 {[%emt 0:00:12]} 45. Kd4 {[%emt 0:00:00]} Kf6 {[%emt 0:00:30]} 46. exf5 {[%emt 0:00:00]} Kxf5 {[%emt 0:00:05]} 47. Kd5 {[%emt 0:00:00]} g5 {[%emt 0:02:40]} 48. Kc6 {[%emt 0:00:00]} Bd8 {[%emt 0:00:45]} 49. Kd6 {[%emt 0:00:00]} Kf6 {[%emt 0:01:12]} 50. Kd7 {[%emt 0:00:00]} 1-0

[Event "Prague Open 2025"]
[Site "Prague"]
[Date "2025.01.11"]
[Round "3.2"]
[White "Adrian, Claude"]
[Black "Senthil Maran K"]
[Result "0-1"]
[Annotator "ChessBase"]
[ECO "A16"]
[WhiteElo "2151"]
[BlackElo "2398"]
[PlyCount "74"]
[EventDate "2025.01.07"]
[EventType "swiss"]
[EventCountry "CZE"]
[SourceTitle "playchess.com"]
[Source "ChessBase"]
[SourceQuality "1"]
[TimeControl "40/5400+30:1800+30"]

1. c4 {[%emt 0:03:00]} Nf6 {[%emt 0:19:26]} 2. Nc3 {[%emt 0:00:53]} b6 {[%emt 0:00:50]} 3. e4 {[%emt 0:00:25]} e5 {[%emt 0:00:18]} 4. Nf3 {[%emt 0:03:50]} Nc6 {[%emt 0:01:09]} 5. Be2 {[%emt 0:03:57]} Bc5 {[%emt 0:04:12]} 6. Nxe5 {[%emt 0:07:10]} Nxe5 {[%emt 0:00:46]} 7. d4 {[%emt 0:00:05]} Bd6 {[%emt 0:07:27]} 8. dxe5 {[%emt 0:00:32]} Bxe5 {[%emt 0:00:03]} 9. f4 {[%emt 0:06:03]} Bxc3+ {[%emt 0:02:11]} 10. bxc3 {[%emt 0:00:12]} Bb7 {[%emt 0:01:35]} 11. e5 {[%emt 0:10:26]} Ne4 {[%emt 0:01:35]} 12. O-O {[%emt 0:00:31]} Nxc3 {[%emt 0:00:32]} 13. Qc2 {[%emt 0:01:00]} Nxe2+ {[%emt 0:00:16]} 14. Qxe2 {[%emt 0:00:03]} Qe7 {[%emt 0:02:34]} 15. a4 {[%emt 0:03:31]} Qc5+ {[%emt 0:12:37]} 16. Be3 {[%emt 0:00:26]} Qc6 {[%emt 0:00:35]} 17. Rfc1 {[%emt 0:13:23]} O-O {[%emt 0:05:10]} 18. c5 {[%emt 0:00:56]} Qg6 {[%emt 0:02:37]} 19. Ra3 {[%emt 0:03:18]} f6 {[%emt 0:05:54]} 20. Bd4 {[%emt 0:02:36]} Qe4 {[%emt 0:03:09]} 21. Qf2 {[%emt 0:10:12]} fxe5 {[%emt 0:06:17]} 22. Bxe5 {[%emt 0:00:18]} Rae8 {[%emt 0:04:13]} 23. Re1 {[%emt 0:02:13]} Rxf4 {[%emt 0:08:57]} 24. Rxe4 {[%emt 0:00:14]} Rxf2 {[%emt 0:00:05]} 25. Kxf2 {[%emt 0:00:52]} Bxe4 {[%emt 0:00:07]} 26. Bxc7 {[%emt 0:00:09]} bxc5 {[%emt 0:01:00]} 27. Rc3 {[%emt 0:00:22]} Rf8+ {[%emt 0:00:48]} 28. Kg3 {[%emt 0:03:28]} Rf5 {[%emt 0:01:17]} 29. Bd6 {[%emt 0:00:05]} Bc6 {[%emt 0:02:13]} 30. Rxc5 {[%emt 0:00:52]} Rf6 {[%emt 0:00:46]} 31. Be7 {[%emt 0:05:56]} Re6 {[%emt 0:02:28]} 32. Bd8 {[%emt 0:01:59]} Re2 {[%emt 0:00:12]} 33. Ra5 {[%emt 0:00:07]} Rxg2+ {[%emt 0:00:05]} 34. Kh3 {[%emt 0:00:08]} Ra2 {[%emt 0:00:24]} 35. Rxa7 {[%emt 0:00:05]} Bxa4 {[%emt 0:01:18]} 36. Bg5 {[%emt 0:03:27]} Ra3+ {[%emt 0:00:37]} 37. Kh4 {[%emt 0:00:47]} h6 {[%emt 0:00:10]} 0-1

[Event "Prague Open 2025"]
[Site "Prague"]
[Date "2025.01.11"]
[Round "3.3"]
[White "Jain Kashish Manoj"]
[Black "Kuhn, Ulf"]
[Result "1-0"]
[Annotator "RC"]
[ECO "B48"]
[WhiteElo "2363"]
[BlackElo "2115"]
[PlyCount "73"]
[EventDate "2025.01.07"]
[EventType "swiss"]
[EventCountry "CZE"]
[SourceTitle "playchess.com"]
[Source "ChessBase"]
[SourceQuality "1"]
[TimeControl "40/5400+30:1800+30"]

1. e4 {[%emt 0:00:09]} c5 {[%emt 0:00:05]} 2. Nf3 {[%emt 0:00:07]} e6 {[%emt 0:00:06]} 3. d4 {[%emt 0:00:08]} cxd4 {[%emt 0:00:05]} 4. Nxd4 {[%emt 0:00:06]} Nc6 {[%emt 0:00:11]} 5. Nc3 {[%emt 0:00:07]} Qc7 {[%emt 0:00:10]} 6. Be3 {[%emt 0:00:07]} a6 {[%emt 0:00:20]} 7. Qf3 {[%emt 0:00:10]} Nf6 {[%emt 0:00:30]} 8. O-O-O {[%emt 0:00:37]} Ne5 {[%emt 0:00:33]} 9. Qg3 {[%emt 0:01:08]} b5 {[%emt 0:00:38]} 10. f4 {[%emt 0:03:22]} Neg4 {[%emt 0:01:04]} 11. Bd2 {[%emt 0:00:27]} b4 {[%emt 0:14:11]} 12. Na4 {[%emt 0:00:09]} h5 {[%emt 0:00:35]} 13. Bd3 {[%emt 0:00:38]} Bb7 {[%emt 0:07:18]} 14. h3 {[%emt 0:13:14]} Nh6 {[%emt 0:04:01]} 15. Rhe1 {[%emt 0:04:58]} g6 {[%emt 0:02:50]} 16. Kb1 {[%emt 0:06:11]} Be7 {[%emt 0:06:23]} 17. Qf2 {[%emt 0:01:11]} d5 {[%emt 0:01:12]} 18. e5 {[%emt 0:16:35]} Ne4 {[%emt 0:01:02]} 19. Bxe4 {[%emt 0:00:07]} dxe4 {[%emt 0:00:06]} 20. Nb3 {[%emt 0:07:10]} Nf5 {[%emt 0:05:40]} 21. g4 {[%emt 0:09:31]} e3 {[%emt 0:09:00]} 22. Bxe3 {[%emt 0:01:10]} Bh4 {[%emt 0:00:29]} 23. Qg1 {[%emt 0:05:54]} hxg4 {[%emt 0:02:07]} 24. hxg4 {[%emt 0:05:18]} Bxe1 {[%emt 0:00:38]} 25. gxf5 {[%emt 0:11:28]} Rh1 {[%emt 0:03:05]} 26. Qg4 {[%emt 0:00:18]} exf5 {[%emt 0:17:29]} 27. Qe2 {[%emt 0:00:07]} Bh4 {[%emt 0:00:36]} 28. Rxh1 {[%emt 0:03:29]} Bxh1 {[%emt 0:00:02]} 29. Qh2 {[%emt 0:00:24]} Be4 {[%emt 0:00:48]} 30. Bc5 {[%emt 0:01:04]} Qd8 {[%emt 0:06:14]} 31. Bd6 {[%emt 0:00:59]} Rc8 {[%emt 0:01:25]} 32. Nac5 {[%emt 0:01:10]} g5 {[%emt 0:01:34]} 33. Qe2 {[%emt 0:02:27]} gxf4 {[%emt 0:11:42]} 34. Qh5 {[%emt 0:01:28]} Bf6 {[%emt 0:00:20]} 35. Qh7 {[%emt 0:00:39]} Qxd6 {[%emt 0:00:50]} 36. exd6 {[%emt 0:00:06]} Kf8 {[%emt 0:00:07]} 37. Nd7+ {[%emt 0:00:15]} 1-0

[Event "Prague Open 2025"]
[Site "Prague"]
[Date "2025.01.11"]
[Round "3.4"]
[White "Lewtak, Damian"]
[Black "Rybackova, Lucie"]
[Result "1-0"]
[Annotator "RC"]
[ECO "B40"]
[WhiteElo "2359"]
[BlackElo "2077"]
[PlyCount "111"]
[EventDate "2025.01.07"]
[EventType "swiss"]
[EventCountry "CZE"]
[SourceTitle "playchess.com"]
[Source "ChessBase"]
[SourceQuality "1"]
[TimeControl "40/5400+30:1800+30"]

1. e4 {[%emt 0:01:02]} c5 {[%emt 0:00:09]} 2. Nf3 {[%emt 0:00:08]} e6 {[%emt 0:00:09]} 3. b3 {[%emt 0:02:15]} d6 {[%emt 0:04:00]} 4. Bb2 {[%emt 0:01:56]} Nc6 {[%emt 0:06:14]} 5. Bb5 {[%emt 0:02:13]} e5 {[%emt 0:05:32]} 6. O-O {[%emt 0:01:57]} Nge7 {[%emt 0:00:54]} 7. c3 {[%emt 0:03:14]} a6 {[%emt 0:03:46]} 8. Bxc6+ {[%emt 0:04:49]} Nxc6 {[%emt 0:00:32]} 9. d4 {[%emt 0:00:05]} g6 {[%emt 0:09:03]} 10. dxc5 {[%emt 0:03:35]} dxc5 {[%emt 0:00:33]} 11. Qxd8+ {[%emt 0:00:05]} Kxd8 {[%emt 0:00:15]} 12. Rd1+ {[%emt 0:00:27]} Kc7 {[%emt 0:06:45]} 13. Nbd2 {[%emt 0:00:26]} Bh6 {[%emt 0:09:47]} 14. Nc4 {[%emt 0:01:47]} f6 {[%emt 0:02:17]} 15. Bc1 {[%emt 0:03:40]} Bxc1 {[%emt 0:03:04]} 16. Raxc1 {[%emt 0:00:06]} Be6 {[%emt 0:01:28]} 17. Ne3 {[%emt 0:00:06]} Rhd8 {[%emt 0:02:46]} 18. Nd5+ {[%emt 0:01:48]} Bxd5 {[%emt 0:00:23]} 19. exd5 {[%emt 0:00:05]} Ne7 {[%emt 0:00:58]} 20. c4 {[%emt 0:00:23]} Nf5 {[%emt 0:03:37]} 21. Nd2 {[%emt 0:01:29]} Nd6 {[%emt 0:03:08]} 22. f3 {[%emt 0:04:59]} f5 {[%emt 0:05:48]} 23. Re1 {[%emt 0:04:53]} Re8 {[%emt 0:05:32]} 24. Re2 {[%emt 0:00:18]} Re7 {[%emt 0:01:26]} 25. b4 {[%emt 0:03:53]} b6 {[%emt 0:01:25]} 26. bxc5 {[%emt 0:00:14]} bxc5 {[%emt 0:00:02]} 27. Nb3 {[%emt 0:00:07]} Nb7 {[%emt 0:01:32]} 28. Rb1 {[%emt 0:02:02]} Rae8 {[%emt 0:04:58]} 29. Kf2 {[%emt 0:16:01]} e4 {[%emt 0:02:46]} 30. Rbe1 {[%emt 0:05:48]} Kd7 {[%emt 0:02:18]} 31. fxe4 {[%emt 0:03:27]} fxe4 {[%emt 0:00:21]} 32. Ke3 {[%emt 0:02:13]} Kc7 {[%emt 0:08:37]} 33. Kd2 {[%emt 0:01:01]} Nd6 {[%emt 0:02:01]} 34. Kc3 {[%emt 0:00:58]} Nb7 {[%emt 0:00:22]} 35. Rf1 {[%emt 0:00:46]} Rd8 {[%emt 0:00:49]} 36. Rf6 {[%emt 0:01:27]} Rd6 {[%emt 0:00:17]} 37. Rf4 {[%emt 0:00:12]} e3 {[%emt 0:01:43]} 38. Rf3 {[%emt 0:01:37]} Rdd7 {[%emt 0:01:04]} 39. Kd3 {[%emt 0:00:45]} a5 {[%emt 0:01:47]} 40. Rf6 {[%emt 0:01:04]} Rd6 {[%emt 0:00:49]} 41. Rxd6 {[%emt 0:33:16]} Kxd6 {[%emt 0:30:10]} 42. a4 {[%emt 0:00:11]} Rf7 {[%emt 0:01:25]} 43. Rxe3 {[%emt 0:00:47]} Rf2 {[%emt 0:00:39]} 44. Re6+ {[%emt 0:00:10]} Kd7 {[%emt 0:00:00]} 45. Rb6 {[%emt 0:00:00]} Kc7 {[%emt 0:00:00]} 46. Rc6+ {[%emt 0:00:00]} Kd7 {[%emt 0:00:00]} 47. Nxc5+ {[%emt 0:00:00]} Nxc5+ {[%emt 0:00:00]} 48. Rxc5 {[%emt 0:00:00]} Rxg2 {[%emt 0:00:00]} 49. Rxa5 {[%emt 0:00:00]} Rxh2 {[%emt 0:00:00]} 50. Kd4 {[%emt 0:00:00]} h5 {[%emt 0:00:00]} 51. Ra7+ {[%emt 0:00:00]} Kd8 {[%emt 0:00:00]} 52. c5 {[%emt 0:00:00]} h4 {[%emt 0:00:00]} 53. c6 {[%emt 0:00:00]} Rc2 {[%emt 0:00:00]} 54. Rh7 {[%emt 0:00:00]} Ra2 {[%emt 0:00:00]} 55. d6 {[%emt 0:00:00]} Rxa4+ {[%emt 0:00:00]} 56. Ke5 {[%emt 0:00:00]} 1-0